bitfinex-derivatives/quotes_BTCF0:USTF0_20250630
["timestamp","ask_amount","ask_price","bid_price","bid_amount"]
[1751322356927,0.40175255,107320.0,107310.0,1.91842032]
[1751322367637,0.40175255,107320.0,107310.0,2.12477514]
[1751322370928,0.36186116,107320.0,107310.0,2.12477514]
[1751322372645,0.36186116,107320.0,107310.0,1.75271515]
[1751322372944,0.36186116,107320.0,107310.0,2.12477514]
[1751322373132,0.36186116,107320.0,107310.0,1.1420255]
[1751322373332,0.36186116,107320.0,107310.0,1.91834032]
[1751322373742,0.36186116,107320.0,107310.0,2.12469514]
[1751322375938,0.36186116,107320.0,107310.0,1.91834032]
[1751322378644,0.33710861,107320.0,107310.0,2.12469514]
[1751322383146,0.33710861,107320.0,107310.0,2.13916879]
[1751322384048,0.33710861,107320.0,107310.0,2.13916841]
[1751322388849,0.33710861,107320.0,107310.0,1.76710842]
[1751322389146,0.33710861,107320.0,107310.0,2.13916841]
[1751322391446,0.03168401,107320.0,107310.0,2.13916841]
[1751322391746,0.06168401,107320.0,107310.0,2.13916841]
[1751322392345,0.03168401,107320.0,107310.0,2.13916841]
[1751322392544,0.007,107320.0,107310.0,2.13916841]
[1751322393346,0.003,107320.0,107310.0,2.13916841]
[1751322393644,0.005,107320.0,107310.0,2.13916841]
[1751322394053,0.003,107320.0,107310.0,2.13916841]
[1751322394353,0.001,107330.0,107320.0,0.1863119]
[1751322394551,0.331,107330.0,107320.0,1.5131548]
[1751322394851,0.35568178,107330.0,107320.0,1.5131548]
[1751322395243,0.41098178,107330.0,107320.0,1.5131548]
[1751322395645,0.41098178,107330.0,107320.0,1.49868153]
[1751322395847,0.41298178,107330.0,107320.0,1.49868153]
[1751322396540,0.41398178,107330.0,107320.0,1.49868153]
[1751322398046,0.46248178,107330.0,107320.0,1.49868153]
[1751322401558,0.46248178,107330.0,107320.0,1.12868153]
[1751322401859,0.6688366,107330.0,107320.0,0.2007624]
[1751322402058,0.7178366,107330.0,107320.0,0.97691722]
[1751322402259,0.7178366,107330.0,107320.0,0.40711722]
[1751322404561,0.7178366,107330.0,107320.0,0.2007624]
[1751322404753,0.7178366,107330.0,107320.0,0.40711722]
[1751322409158,0.7178366,107330.0,107320.0,0.2007624]
[1751322409564,0.9041311,107330.0,107320.0,0.2007624]
[1751322410169,0.7178366,107330.0,107320.0,0.2007624]
[1751322410469,0.7178366,107330.0,107320.0,0.40711722]
[1751322427669,0.7178366,107330.0,107320.0,0.45691722]
[1751322428175,0.46248178,107330.0,107320.0,0.66327204]
[1751322428383,0.41398178,107330.0,107320.0,0.71247204]
[1751322428671,0.92832178,107330.0,107320.0,1.13353203]
[1751322429375,0.92832178,107330.0,107320.0,1.49353203]
[1751322432371,0.92832178,107330.0,107320.0,1.13353203]
[1751322433681,0.92832178,107330.0,107320.0,0.72082239]
[1751322433875,0.92832178,107330.0,107320.0,1.13353203]
[1751322434578,1.1346766,107330.0,107320.0,1.13353203]
[1751322440781,1.1346766,107330.0,107320.0,0.76147204]
[1751322444487,1.1346766,107330.0,107320.0,0.55511722]
[1751322444785,1.3671711,107330.0,107320.0,0.40711722]
[1751322444986,1.4619711,107330.0,107320.0,0.40711722]
[1751322445586,1.2756766,107330.0,107320.0,0.40711722]
[1751322447489,1.2756766,107330.0,107320.0,0.45471722]
[1751322448691,1.2756766,107330.0,107320.0,0.82677721]
[1751322449997,1.06932178,107330.0,107320.0,0.82677721]
[1751322450295,1.2756766,107330.0,107320.0,0.82677721]
[1751322452094,1.2756766,107330.0,107320.0,0.62042239]
[1751322452294,1.2756766,107330.0,107320.0,0.82677721]
[1751322455997,1.2756766,107330.0,107320.0,1.03313203]
[1751322456296,1.2756766,107330.0,107320.0,0.82677721]
[1751322460099,1.2756766,107330.0,107320.0,0.77917721]
[1751322460401,1.4619711,107330.0,107320.0,0.77917721]
[1751322461299,1.2756766,107330.0,107320.0,0.77917721]
[1751322461799,1.4619711,107330.0,107320.0,0.77917721]
[1751322462598,1.4619711,107330.0,107320.0,0.40711722]
[1751322462805,1.4619711,107330.0,107320.0,0.77917721]
[1751322465608,1.25561628,107330.0,107320.0,0.77917721]
[1751322465810,1.4619711,107330.0,107320.0,0.77917721]
[1751322468513,1.4619711,107330.0,107320.0,0.82517721]
[1751322468710,0.1863119,107320.0,107310.0,0.44419332]
[1751322469016,0.76220332,107320.0,107310.0,0.75867547]
[1751322469211,1.05880332,107320.0,107310.0,0.24745548]
[1751322469415,1.10700332,107320.0,107310.0,0.24745548]
[1751322472815,1.10700332,107320.0,107310.0,0.01456248]
[1751322473209,1.10700332,107320.0,107310.0,0.20089168]
[1751322473816,1.10700332,107320.0,107310.0,0.1863292]
[1751322477619,1.11633055,107320.0,107310.0,0.1863292]
[1751322477822,1.10700332,107320.0,107310.0,0.1863292]
[1751322478623,0.69429368,107320.0,107310.0,0.1863292]
[1751322478820,1.10700332,107320.0,107310.0,0.1863292]
[1751322479915,0.69429368,107320.0,107310.0,0.55838919]
[1751322480122,1.3750085,107320.0,107310.0,0.81134401]
[1751322480420,1.3750085,107320.0,107310.0,0.90634401]
[1751322484124,1.58136332,107320.0,107310.0,0.90634401]
[1751322489324,1.58136332,107320.0,107310.0,0.69998919]
[1751322490822,1.58136332,107320.0,107310.0,0.65038919]
[1751322491128,1.63136332,107320.0,107310.0,0.65038919]
[1751322504642,1.63136332,107320.0,107310.0,0.60498919]
[1751322507843,1.63136332,107320.0,107310.0,0.2329292]
[1751322508042,1.63136332,107320.0,107310.0,0.60498919]
[1751322509444,1.67666332,107320.0,107310.0,0.60498919]
[1751322513349,1.67666332,107320.0,107310.0,0.2329292]
[1751322513544,1.67666332,107320.0,107310.0,0.60498919]
[1751322517154,1.67666332,107320.0,107310.0,0.2329292]
[1751322519048,1.67666332,107320.0,107310.0,0.0466]
[1751322519255,1.67666332,107320.0,107310.0,0.2329292]
[1751322519555,0.1863292,107310.0,107300.0,0.34125916]
[1751322519752,0.8512658,107310.0,107300.0,0.34125916]
[1751322520053,1.3785258,107310.0,107300.0,0.57941398]
[1751322520257,1.3785258,107310.0,107300.0,0.61081398]
[1751322520451,1.3785258,107310.0,107300.0,0.64121398]
[1751322521058,1.3785258,107310.0,107300.0,0.62604242]
[1751322521355,1.3785258,107310.0,107300.0,0.62704242]
[1751322521857,1.3785258,107310.0,107300.0,0.62904242]
[1751322523657,1.3785258,107310.0,107300.0,1.00110241]
[1751322524659,1.3785258,107310.0,107300.0,0.67117659]
[1751322525159,1.4117258,107310.0,107300.0,0.67117659]
[1751322528857,1.4117258,107310.0,107300.0,0.87753141]
[1751322533361,1.4117258,107310.0,107300.0,0.67117659]
[1751322533562,1.4117258,107310.0,107300.0,0.87753141]
[1751322535064,0.41708178,107310.0,107300.0,1.08388623]
[1751322535357,0.20468178,107310.0,107300.0,1.08388623]
[1751322535565,0.20468178,107310.0,107300.0,1.48458623]
[1751322536568,0.20468178,107310.0,107300.0,2.05314623]
[1751322536760,0.02468178,107310.0,107300.0,2.05314623]
[1751322538271,0.001,107330.0,107320.0,0.1863119]
[1751322538567,0.001,107330.0,107320.0,1.06618153]
[1751322538568,0.35602533,107330.0,107320.0,1.06618153]
[1751322538966,0.35602533,107330.0,107320.0,1.42618153]
[1751322539166,0.35602533,107330.0,107320.0,1.17618153]
[1751322539362,0.35802533,107330.0,107320.0,1.36618153]
[1751322540373,0.56438015,107330.0,107320.0,1.36618153]
[1751322541074,0.35802533,107330.0,107320.0,1.36618153]
[1751322541868,0.35902533,107330.0,107320.0,1.36618153]
[1751322543877,0.35902533,107330.0,107320.0,0.95347189]
[1751322544078,0.35902533,107330.0,107320.0,1.36618153]
[1751322544379,0.56538015,107330.0,107320.0,1.36618153]
[1751322546886,0.35902533,107330.0,107320.0,1.36618153]
[1751322547087,0.56538015,107330.0,107320.0,1.36618153]
[1751322548486,0.56538015,107330.0,107320.0,1.15982671]
[1751322548686,0.59598015,107330.0,107320.0,1.15982671]
[1751322548989,0.78227465,107330.0,107320.0,0.95347189]
[1751322549190,0.78227465,107330.0,107320.0,1.15982671]
[1751322549686,0.78227465,107330.0,107320.0,1.12912671]
[1751322549991,0.81397465,107330.0,107320.0,1.09632671]
[1751322550988,0.81397465,107330.0,107320.0,0.88997189]
[1751322551190,0.81397465,107330.0,107320.0,1.09632671]
[1751322552094,0.81397465,107330.0,107320.0,0.5179119]
[1751322552389,0.84427465,107330.0,107320.0,0.4863119]
[1751322555692,0.84427465,107330.0,107320.0,0.85837189]
[1751322557899,0.84427465,107330.0,107320.0,0.4863119]
[1751322558097,0.84427465,107330.0,107320.0,0.85837189]
[1751322558297,0.63791983,107330.0,107320.0,0.85837189]
[1751322558495,0.84427465,107330.0,107320.0,0.85837189]
[1751322562203,0.84427465,107330.0,107320.0,0.4863119]
[1751322562505,0.84427465,107330.0,107320.0,0.85837189]
[1751322567409,0.84427465,107330.0,107320.0,1.06472671]
[1751322569003,0.81397465,107330.0,107320.0,1.09572671]
[1751322569502,0.81397465,107330.0,107320.0,1.12732671]
[1751322574915,0.78227465,107330.0,107320.0,1.12732671]
[1751322575108,0.78227465,107330.0,107320.0,1.15732671]
[1751322578816,0.78227465,107330.0,107320.0,0.78526672]
[1751322579115,0.78227465,107330.0,107320.0,0.58937189]
[1751322579317,0.81537465,107330.0,107320.0,0.58937189]
[1751322581916,0.81537465,107330.0,107320.0,0.2173119]
[1751322582121,0.81537465,107330.0,107320.0,0.58937189]
[1751322582615,0.81537465,107330.0,107320.0,0.2173119]
[1751322582820,0.81537465,107330.0,107320.0,0.58937189]
[1751322586620,0.81537465,107330.0,107320.0,0.2173119]
[1751322586924,0.81552798,107330.0,107320.0,0.58937189]
[1751322590623,0.81552798,107330.0,107320.0,0.2173119]
[1751322595631,0.81552798,107330.0,107320.0,0.58937189]
[1751322597728,0.54547316,107330.0,107320.0,0.79572671]
[1751322597932,1.31962798,107330.0,107320.0,0.85962671]
[1751322598132,0.75182798,107330.0,107320.0,0.85962671]
[1751322598332,1.31962798,107330.0,107320.0,0.85962671]
[1751322600434,1.31962798,107330.0,107320.0,0.48756672]
[1751322600636,1.31962798,107330.0,107320.0,0.85962671]
[1751322603139,0.75182798,107330.0,107320.0,0.85962671]
[1751322603439,0.92689866,107330.0,107320.0,1.06598153]
[1751322603637,0.92689866,107330.0,107320.0,1.40598153]
[1751322604543,0.92689866,107330.0,107320.0,1.41598153]
[1751322604839,0.92689866,107330.0,107320.0,1.39598153]
[1751322605032,0.35917866,107330.0,107320.0,1.06598153]
[1751322605338,0.35917866,107330.0,107320.0,1.40598153]
[1751322606242,0.35917866,107330.0,107320.0,1.39598153]
[1751322606935,0.35917866,107330.0,107320.0,1.08598153]
[1751322626465,0.38967866,107330.0,107320.0,1.08598153]
[1751322628062,0.59603348,107330.0,107320.0,0.87962671]
[1751322628263,0.59603348,107330.0,107320.0,1.08598153]
[1751322631866,0.38967866,107330.0,107320.0,1.08598153]
[1751322632359,0.59603348,107330.0,107320.0,1.08598153]
[1751322632765,0.38967866,107330.0,107320.0,1.08598153]
[1751322635867,0.38967866,107330.0,107320.0,1.44598153]
[1751322636068,0.38967866,107330.0,107320.0,1.08598153]
[1751322636470,0.38967866,107330.0,107320.0,1.42598153]
[1751322637366,0.38967866,107330.0,107320.0,1.08598153]
[1751322638870,0.38967866,107330.0,107320.0,1.96330153]
[1751322642570,0.35917866,107330.0,107320.0,1.96330153]
[1751322652883,0.38947866,107330.0,107320.0,1.96330153]
[1751322662074,0.35917866,107330.0,107320.0,1.96330153]
[1751322662284,0.02917866,107330.0,107320.0,2.16965635]
[1751322662579,0.02917866,107330.0,107320.0,1.96330153]
[1751322663473,0.02817866,107330.0,107320.0,1.96330153]
[1751322663675,0.003,107330.0,107320.0,1.96330153]
[1751322664072,0.001,107330.0,107320.0,1.96330153]
[1751322664579,0.001,107330.0,107320.0,2.0378241]
[1751322665378,0.05684724,107340.0,107330.0,0.1862946]
[1751322665571,0.41684724,107340.0,107330.0,1.14670941]
[1751322665776,0.41684724,107340.0,107330.0,1.17940941]
[1751322667079,0.41784724,107340.0,107330.0,1.17940941]
[1751322667280,0.41984724,107340.0,107330.0,1.17940941]
[1751322669087,0.41984724,107340.0,107330.0,1.38576423]
[1751322669483,0.41984724,107340.0,107330.0,1.17940941]
[1751322672188,0.3951,107340.0,107330.0,1.17940941]
[1751322672383,0.41985474,107340.0,107330.0,1.38576423]
[1751322672580,0.41985474,107340.0,107330.0,1.35306423]
[1751322672785,0.38775474,107340.0,107330.0,1.38446423]
[1751322677592,0.38775474,107340.0,107330.0,1.17810941]
[1751322677794,0.41845474,107340.0,107330.0,1.14670941]
[1751322678098,0.62480956,107340.0,107330.0,1.33166941]
[1751322678395,0.68770956,107340.0,107330.0,1.33166941]
[1751322678791,0.68770956,107340.0,107330.0,0.95960942]
[1751322678998,0.89406438,107340.0,107330.0,0.1862946]
[1751322679599,1.08034158,107340.0,107330.0,0.1862946]
[1751322680096,0.89406438,107340.0,107330.0,0.1862946]
[1751322680899,1.08034158,107340.0,107330.0,0.1862946]
[1751322681498,0.89406438,107340.0,107330.0,0.1862946]
[1751322685397,0.89406438,107340.0,107330.0,0.39264942]
[1751322685398,0.48135474,107340.0,107330.0,0.39264942]
[1751322685595,0.68770956,107340.0,107330.0,0.39264942]
[1751322689104,0.89406438,107340.0,107330.0,0.39264942]
[1751322694310,0.68770956,107340.0,107330.0,0.39264942]
[1751322694914,0.89406438,107340.0,107330.0,0.39264942]
[1751322695315,0.66763194,107340.0,107330.0,0.39264942]
[1751322695515,0.68770956,107340.0,107330.0,0.39264942]
[1751322696508,1.25462956,107340.0,107330.0,0.39264942]
[1751322698016,1.25462956,107340.0,107330.0,0.42574942]
[1751322698817,1.44090676,107340.0,107330.0,0.42574942]
[1751322699318,1.25462956,107340.0,107330.0,0.42574942]
[1751322699720,1.23455194,107340.0,107330.0,0.42574942]
[1751322700019,1.44090676,107340.0,107330.0,0.42574942]
[1751322700719,1.25462956,107340.0,107330.0,0.42574942]
[1751322701214,1.44090676,107340.0,107330.0,0.2193946]
[1751322701415,1.64726158,107340.0,107330.0,0.1862946]
[1751322703921,1.23455194,107340.0,107330.0,0.1862946]
[1751322704121,1.64726158,107340.0,107330.0,0.1862946]
[1751322704718,1.25462956,107340.0,107330.0,0.1862946]
[1751322704920,1.25462956,107340.0,107330.0,0.42314942]
[1751322706725,1.22182956,107340.0,107330.0,0.42314942]
[1751322707224,1.01547474,107340.0,107330.0,0.42314942]
[1751322707425,1.22182956,107340.0,107330.0,0.42314942]
[1751322709626,1.40810676,107340.0,107330.0,0.42314942]
[1751322710822,1.19172956,107340.0,107330.0,0.42314942]
[1751322711024,1.19172956,107340.0,107330.0,0.82550941]
[1751322711324,1.19172956,107340.0,107330.0,0.85860941]
[1751322713029,0.98537474,107340.0,107330.0,0.85860941]
[1751322713226,1.19172956,107340.0,107330.0,0.85860941]
[1751322714325,0.98537474,107340.0,107330.0,0.85860941]
[1751322714528,1.19172956,107340.0,107330.0,0.85860941]
[1751322715326,0.98537474,107340.0,107330.0,0.85860941]
[1751322715633,1.19172956,107340.0,107330.0,0.85860941]
[1751322716626,1.19172956,107340.0,107330.0,0.48654942]
[1751322716832,1.19172956,107340.0,107330.0,0.85860941]
[1751322718732,0.62480956,107340.0,107330.0,0.85860941]
[1751322718933,1.19584956,107340.0,107330.0,0.85860941]
[1751322720228,0.41845474,107340.0,107330.0,0.48654942]
[1751322720434,0.95875474,107340.0,107330.0,1.16860941]
[1751322721534,0.95875474,107340.0,107330.0,0.96225459]
[1751322721735,0.95875474,107340.0,107330.0,1.16860941]
[1751322723135,0.95871474,107340.0,107330.0,1.16860941]
[1751322723531,0.38775474,107340.0,107330.0,1.16860941]
[1751322723731,0.95891474,107340.0,107330.0,1.16860941]
[1751322725637,0.38775474,107340.0,107330.0,1.16860941]
[1751322728931,0.38775474,107340.0,107330.0,1.21860941]
[1751322732132,0.59410956,107340.0,107330.0,0.65225459]
[1751322732530,0.62500956,107340.0,107330.0,0.85860941]
[1751322734541,0.62500956,107340.0,107330.0,0.82550941]
[1751322736839,0.41865474,107340.0,107330.0,0.2470946]
[1751322737049,0.62500956,107340.0,107330.0,0.79520941]
[1751322737238,0.65690956,107340.0,107330.0,0.79520941]
[1751322740050,0.45055474,107340.0,107330.0,0.79520941]
[1751322740252,0.65690956,107340.0,107330.0,0.79520941]
[1751322741248,0.45055474,107340.0,107330.0,0.79520941]
[1751322741649,0.45055474,107340.0,107330.0,0.82810941]
[1751322742150,0.41865474,107340.0,107330.0,0.82810941]
[1751322742451,0.41865474,107340.0,107330.0,1.16810941]
[1751322742650,0.41865474,107340.0,107330.0,1.19900941]
[1751322744955,0.41865474,107340.0,107330.0,0.65265459]
[1751322745253,0.41865474,107340.0,107330.0,0.85900941]
[1751322745453,0.41865474,107340.0,107330.0,1.20900941]
[1751322745753,0.41865474,107340.0,107330.0,0.85900941]
[1751322746455,0.41865474,107340.0,107330.0,1.20900941]
[1751322747054,0.41865474,107340.0,107330.0,1.00265459]
[1751322747354,0.41865474,107340.0,107330.0,1.20900941]
[1751322752464,0.41865474,107340.0,107330.0,0.85900941]
[1751322752666,0.41865474,107340.0,107330.0,1.21900941]
[1751322752866,0.41865474,107340.0,107330.0,0.85900941]
[1751322753266,0.41865474,107340.0,107330.0,1.20900941]
[1751322755770,0.41865474,107340.0,107330.0,0.85900941]
[1751322757261,0.41865474,107340.0,107330.0,1.17900941]
[1751322757469,0.41865474,107340.0,107330.0,1.19900941]
[1751322757670,0.41865474,107340.0,107330.0,0.85900941]
[1751322757972,0.41865474,107340.0,107330.0,1.17900941]
[1751322758270,0.41865474,107340.0,107330.0,1.20900941]
[1751322761169,0.41865474,107340.0,107330.0,0.85900941]
[1751322761369,0.41865474,107340.0,107330.0,1.19900941]
[1751322762168,0.41827457,107340.0,107330.0,1.19900941]
[1751322762674,0.41827457,107340.0,107330.0,0.82694942]
[1751322762880,0.41827457,107340.0,107330.0,0.65265459]
[1751322763078,0.41827457,107340.0,107330.0,0.85900941]
[1751322764071,0.41827457,107340.0,107330.0,1.21900941]
[1751322764672,0.41827457,107340.0,107330.0,1.22900941]
[1751322764872,0.41827457,107340.0,107330.0,0.85900941]
[1751322765172,0.41827457,107340.0,107330.0,1.21900941]
[1751322765673,0.41827457,107340.0,107330.0,0.85900941]
[1751322780374,0.41827457,107340.0,107330.0,1.22900941]
[1751322780679,0.41827457,107340.0,107330.0,1.20900941]
[1751322781278,0.41827457,107340.0,107330.0,0.85900941]
[1751322781879,0.41827457,107340.0,107330.0,1.18900941]
[1751322782780,0.41827457,107340.0,107330.0,0.85900941]
[1751322785382,0.41827457,107340.0,107330.0,1.18900941]
[1751322785581,0.41827457,107340.0,107330.0,0.85900941]
[1751322790685,0.62462939,107340.0,107330.0,0.85900941]
[1751322790886,1.11041651,107340.0,107330.0,0.1862946]
[1751322791186,1.22248961,107340.0,107330.0,0.1862946]
[1751322792079,1.46032961,107340.0,107330.0,0.1862946]
[1751322792284,1.25397479,107340.0,107330.0,0.1862946]
[1751322792485,1.30976637,107340.0,107330.0,0.1862946]
[1751322794180,1.25397479,107340.0,107330.0,0.1862946]
[1751322800789,1.30976637,107340.0,107330.0,0.1862946]
[1751322801089,1.25397479,107340.0,107330.0,0.1862946]
[1751322801890,1.44031079,107340.0,107330.0,0.1862946]
[1751322802092,0.1862946,107330.0,107320.0,0.3260216]
[1751322802292,1.21386917,107330.0,107320.0,0.3260216]
[1751322802494,1.42022399,107330.0,107320.0,0.3260216]
[1751322803193,1.42022399,107330.0,107320.0,0.53237642]
[1751322803393,0.99507457,107330.0,107320.0,0.56377642]
[1751322803593,1.15066917,107330.0,107320.0,0.56377642]
[1751322803795,1.35702399,107330.0,107320.0,0.96853641]
[1751322803999,1.35702399,107330.0,107320.0,1.20749123]
[1751322804490,1.35702399,107330.0,107320.0,1.00113641]
[1751322808396,0.58286917,107330.0,107320.0,1.00113641]
[1751322808596,1.35706399,107330.0,107320.0,1.00113641]
[1751322809394,1.17076939,107330.0,107320.0,1.00113641]
[1751322809598,1.35706399,107330.0,107320.0,1.00113641]
[1751322811101,1.17076939,107330.0,107320.0,1.00113641]
[1751322818606,1.35706399,107330.0,107320.0,1.00113641]
[1751322818806,1.17076939,107330.0,107320.0,1.00113641]
[1751322821608,1.35706399,107330.0,107320.0,1.00113641]
[1751322822006,1.35706399,107330.0,107320.0,0.79478159]
[1751322822603,1.35706399,107330.0,107320.0,0.4227216]
[1751322822809,1.35706399,107330.0,107320.0,0.79478159]
[1751322823509,1.17076939,107330.0,107320.0,0.79478159]
[1751322823810,1.35706399,107330.0,107320.0,0.79478159]
[1751322825109,1.35706399,107330.0,107320.0,1.00113641]
[1751322826207,1.15070917,107330.0,107320.0,1.00113641]
[1751322826513,1.35706399,107330.0,107320.0,1.00113641]
[1751322828510,1.17076939,107330.0,107320.0,0.96853641]
[1751322836317,1.17076939,107330.0,107320.0,0.76218159]
[1751322836514,1.17076939,107330.0,107320.0,0.96853641]
[1751322845327,1.14639482,107330.0,107320.0,0.96853641]
[1751322845530,1.17044019,107330.0,107320.0,0.96853641]
[1751322849929,1.35673479,107330.0,107320.0,0.76218159]
[1751322850129,1.38913479,107330.0,107320.0,0.93583641]
[1751322850536,1.41943479,107330.0,107320.0,0.93583641]
[1751322850830,1.41943479,107330.0,107320.0,0.69808159]
[1751322851934,1.42043479,107330.0,107320.0,0.69808159]
[1751322855435,1.42243479,107330.0,107320.0,0.69808159]
[1751322860947,1.43156918,107330.0,107320.0,0.69808159]
[1751322861544,1.42243479,107330.0,107320.0,0.69808159]
[1751322869451,1.42243479,107330.0,107320.0,0.72898159]
[1751322872960,1.18577997,107330.0,107320.0,0.72898159]
[1751322873160,0.55333997,107330.0,107320.0,0.93533641]
[1751322873457,1.32721479,107330.0,107320.0,1.00133641]
[1751322876456,1.12085997,107330.0,107320.0,1.00133641]
[1751322876755,1.32721479,107330.0,107320.0,1.00133641]
[1751322879056,1.12085997,107330.0,107320.0,1.00133641]
[1751322879262,1.35741479,107330.0,107320.0,1.00133641]
[1751322881359,1.35741479,107330.0,107320.0,0.90818541]
[1751322882363,1.35737479,107330.0,107320.0,0.90818541]
[1751322882664,1.35737479,107330.0,107320.0,0.53612542]
[1751322882866,1.35737479,107330.0,107320.0,0.90818541]
[1751322885863,1.35737479,107330.0,107320.0,0.63583059]
[1751322886067,1.38777479,107330.0,107320.0,0.63583059]
[1751322886268,1.38777479,107330.0,107320.0,0.84218541]
[1751322891473,1.38777479,107330.0,107320.0,0.47012542]
[1751322891673,1.38777479,107330.0,107320.0,0.84218541]
[1751322894771,1.38777479,107330.0,107320.0,0.63583059]
[1751322895069,1.38777479,107330.0,107320.0,0.84218541]
[1751322896173,1.38777479,107330.0,107320.0,0.63583059]
[1751322898076,1.38777479,107330.0,107320.0,0.84218541]
[1751322900277,1.15101997,107330.0,107320.0,0.84218541]
[1751322900478,1.35737479,107330.0,107320.0,0.87298541]
[1751322900679,1.35737479,107330.0,107320.0,0.90528541]
[1751322901080,1.15101997,107330.0,107320.0,0.90528541]
[1751322901284,1.35737479,107330.0,107320.0,0.90528541]
[1751322904783,1.17108019,107330.0,107320.0,0.90528541]
[1751322905087,0.36704537,107330.0,107320.0,2.04892023]
[1751322906374,0.343,107330.0,107320.0,2.04892023]
[1751322908290,9e-08,107350.0,107340.0,0.1862772]
[1751322908578,0.34000009,107350.0,107340.0,1.61761993]
[1751322908887,0.54635491,107350.0,107340.0,1.64881993]
[1751322909274,0.34000009,107350.0,107340.0,1.44246511]
[1751322909487,0.34000009,107350.0,107340.0,1.64881993]
[1751322909783,0.34600009,107350.0,107340.0,1.64881993]
[1751322909980,0.55635491,107350.0,107340.0,1.64881993]
[1751322910988,0.55635491,107350.0,107340.0,1.65829165]
[1751322911190,0.35000009,107350.0,107340.0,1.64385855]
[1751322911980,0.55635491,107350.0,107340.0,1.43750373]
[1751322912188,0.55635491,107350.0,107340.0,0.87026373]
[1751322912384,0.55635491,107350.0,107340.0,1.43746373]
[1751322912580,0.55635491,107350.0,107340.0,1.23110891]
[1751322912786,0.55635491,107350.0,107340.0,1.43746373]
[1751322918492,0.55635491,107350.0,107340.0,1.64381855]
[1751322920395,0.37392302,107350.0,107340.0,1.95381855]
[1751322922699,0.35000009,107350.0,107340.0,1.95381855]
[1751322923299,0.37396312,107350.0,107340.0,1.95381855]
[1751322925099,0.34800009,107350.0,107340.0,1.95381855]
[1751322925686,0.34500009,107350.0,107340.0,1.95381855]
[1751322927400,0.36898061,107350.0,107340.0,1.95381855]
[1751322927705,0.34500009,107350.0,107340.0,1.95381855]
[1751322934102,0.34400009,107350.0,107340.0,1.95381855]
[1751322934307,0.36801543,107350.0,107340.0,1.95381855]
[1751322934606,0.36501543,107350.0,107340.0,1.95381855]
[1751322934803,0.36601543,107350.0,107340.0,1.95381855]
[1751322936698,0.36601543,107350.0,107340.0,1.54110891]
[1751322936900,0.36601543,107350.0,107340.0,1.95381855]
[1751322940600,0.39821543,107350.0,107340.0,1.95381855]
[1751322940806,0.39821543,107350.0,107340.0,1.92261855]
[1751322941104,0.43061543,107350.0,107340.0,1.92261855]
[1751322941909,0.40660009,107350.0,107340.0,1.92261855]
[1751322942602,0.40660009,107350.0,107340.0,1.55055856]
[1751322942808,0.40660009,107350.0,107340.0,1.92261855]
[1751322943402,0.37420009,107350.0,107340.0,1.92261855]
[1751322946108,0.39822694,107350.0,107340.0,1.92261855]
[1751322952502,0.36602694,107350.0,107340.0,1.92261855]
[1751322952708,0.11170343,107350.0,107340.0,2.23429594]
[1751322953109,0.322,107350.0,107340.0,2.23429594]
[1751322954207,0.002,107350.0,107340.0,2.23429594]
[1751322955811,0.001,107360.0,107350.0,0.1862599]
[1751322956011,0.35495827,107360.0,107350.0,1.37712953]
[1751322957213,0.35795827,107360.0,107350.0,1.37712953]
[1751322957412,0.36095827,107360.0,107350.0,1.37712953]
[1751322960217,0.36095827,107360.0,107350.0,1.45334563]
[1751322961116,0.39095827,107360.0,107350.0,1.45334563]
[1751322965018,0.367,107360.0,107350.0,1.45334563]
[1751322970412,0.367,107360.0,107350.0,1.04063599]
[1751322970814,0.367,107360.0,107350.0,1.24699081]
[1751322971019,0.367,107360.0,107350.0,1.45334563]
[1751322971920,0.39096849,107360.0,107350.0,1.45334563]
[1751322972115,0.39096849,107360.0,107350.0,1.24699081]
[1751322972619,0.39096849,107360.0,107350.0,0.87493082]
[1751322972820,0.367,107360.0,107350.0,1.24699081]
[1751322974516,0.367,107360.0,107350.0,1.21479081]
[1751322975524,0.3993,107360.0,107350.0,1.42114563]
[1751322982126,0.3993,107360.0,107350.0,1.4956682]
[1751322982426,0.6296268,107360.0,107350.0,0.51883082]
[1751322982628,0.6615268,107360.0,107350.0,1.08559082]
[1751322986638,0.6615268,107360.0,107350.0,0.51883082]
[1751322989938,0.45517198,107360.0,107350.0,0.51883082]
[1751322990140,0.6615268,107360.0,107350.0,0.51883082]
[1751322991040,0.45517198,107360.0,107350.0,0.51883082]
[1751322991237,0.6615268,107360.0,107350.0,0.51883082]
[1751322993641,0.45517198,107360.0,107350.0,0.51883082]
[1751322993841,0.6615268,107360.0,107350.0,0.51883082]
[1751322999846,0.8477693,107360.0,107350.0,0.51883082]
[1751323000044,0.6615268,107360.0,107350.0,0.55153082]
[1751323008653,0.6615268,107360.0,107350.0,0.92359081]
[1751323011255,0.6296268,107360.0,107350.0,0.92359081]
[1751323012450,1.58882412,107360.0,107350.0,0.262476]
[1751323012649,1.62072412,107360.0,107350.0,0.262476]
[1751323016254,1.63007746,107360.0,107350.0,0.262476]
[1751323016455,1.20801448,107360.0,107350.0,0.262476]
[1751323016652,1.62072412,107360.0,107350.0,0.46883082]
[1751323018256,1.4143693,107360.0,107350.0,0.46883082]
[1751323019258,1.62072412,107360.0,107350.0,0.46883082]
[1751323020854,1.4143693,107360.0,107350.0,0.46883082]
[1751323022353,1.62072412,107360.0,107350.0,0.46883082]
[1751323022755,1.62072412,107360.0,107350.0,0.49893082]
[1751323022960,1.4143693,107360.0,107350.0,0.49893082]
[1751323023161,1.3824693,107360.0,107350.0,0.49893082]
[1751323023358,1.17611448,107360.0,107350.0,0.49893082]
[1751323023565,1.3824693,107360.0,107350.0,0.49893082]
[1751323024762,1.3824693,107360.0,107350.0,0.87099081]
[1751323024955,1.58882412,107360.0,107350.0,0.87099081]
[1751323027067,1.58882412,107360.0,107350.0,0.49893082]
[1751323027365,1.58882412,107360.0,107350.0,0.87099081]
[1751323030268,1.3501693,107360.0,107350.0,0.87099081]
[1751323030467,1.3501693,107360.0,107350.0,0.90319081]
[1751323032470,1.55652412,107360.0,107350.0,0.90319081]
[1751323032664,1.55652412,107360.0,107350.0,0.53113082]
[1751323032966,1.55652412,107360.0,107350.0,0.90319081]
[1751323033569,1.55652412,107360.0,107350.0,0.69683599]
[1751323033767,1.58872412,107360.0,107350.0,0.90319081]
[1751323036169,1.3823693,107360.0,107350.0,0.90319081]
[1751323039468,1.3823693,107360.0,107350.0,0.91765523]
[1751323041169,1.58872412,107360.0,107350.0,0.91765523]
[1751323042071,1.58872412,107360.0,107350.0,0.71130041]
[1751323042272,1.58872412,107360.0,107350.0,0.91765523]
[1751323045075,1.58872412,107360.0,107350.0,0.54559524]
[1751323045268,1.58872412,107360.0,107350.0,0.91765523]
[1751323050281,1.58872412,107360.0,107350.0,0.71130041]
[1751323050481,1.58872412,107360.0,107350.0,0.91765523]
[1751323052681,1.6445157,107360.0,107350.0,0.91765523]
[1751323058896,1.23180606,107360.0,107350.0,0.91765523]
[1751323059296,1.43816088,107360.0,107350.0,0.91765523]
[1751323059795,1.43816088,107360.0,107350.0,0.88545523]
[1751323059992,1.6765157,107360.0,107350.0,0.67910041]